[Event "EYTCC Open U18 2022"]
[Site "Thessaloniki"]
[Date "2022.07.14"]
[Round "3.31"]
[White "Gerasopoulos, Nikolaos"]
[Black "Hulka, Valentyn"]
[Result "0-1"]
[ECO "B50"]
[WhiteElo "1526"]
[BlackElo "2123"]
[Annotator "ChessBase"]
[PlyCount "60"]
[EventDate "2022.07.12"]
[EventType "team-tourn"]
[EventCountry "GRE"]
[SourceTitle "playchess.com"]
[Source "ChessBase"]
[SourceQuality "1"]
[WhiteTeam "Greece"]
[BlackTeam "Ukraine"]
[WhiteTeamCountry "GRE"]
[BlackTeamCountry "UKR"]
[TimeControl "40/5400+30:1800+30"]

1. e4 {[%emt 0:00:02]} c5 {[%emt 0:00:03]} 2. Nf3 {[%emt 0:00:04]} d6 {[%emt 0:00:04]} 3. c3 {[%emt 0:00:03]} Nf6 {[%emt 0:00:03]} 4. Be2 {[%emt 0:00:05]} Nbd7 {[%emt 0:00:04]} 5. Qc2 {[%emt 0:00:23]} Qc7 {[%emt 0:00:04]} 6. O-O {[%emt 0:00:10]} a6 {[%emt 0:00:03]} 7. d4 {[%emt 0:00:45]} cxd4 {[%emt 0:00:06]} 8. Nxd4 {[%emt 0:00:06]} e5 {[%emt 0:00:56]} 9. Nb3 {[%emt 0:00:23]} Be7 {[%emt 0:03:28]} 10. Be3 {[%emt 0:01:07]} d5 {[%emt 0:01:04]} 11. exd5 {[%emt 0:05:22]} Nxd5 {[%emt 0:00:02]} 12. Qd2 {[%emt 0:00:17]} Nxe3 {[%emt 0:00:29]} 13. Qxe3 {[%emt 0:00:06]} O-O {[%emt 0:01:36]} 14. N1d2 {[%emt 0:02:10]} Nc5 {[%emt 0:02:10]} 15. Bc4 {[%emt 0:05:08]} Bf5 {[%emt 0:22:09]} 16. Nf3 {[%emt 0:09:02]} e4 {[%emt 0:01:35]} 17. Nfd4 {[%emt 0:00:23]} Bg6 {[%emt 0:00:07]} 18. Nxc5 Bxc5 {[%emt 0:00:19]} 19. Rfd1 {[%emt 0:10:22]} Bd6 {[%emt 0:00:53]} 20. Bb3 {[%emt 0:07:21]} Bxh2+ {[%emt 0:00:30]} 21. Kh1 {[%emt 0:00:07]} Bf4 {[%emt 0:00:18]} 22. Qe2 {[%emt 0:01:11]} Rfe8 {[%emt 0:03:37]} 23. Qg4 {[%emt 0:04:30]} Re5 {[%emt 0:07:32]} 24. Re1 {[%emt 0:11:47]} Rg5 {[%emt 0:05:54]} 25. Qe2 {[%emt 0:00:31]} Rh5+ {[%emt 0:03:18]} 26. Kg1 {[%emt 0:02:14]} Bh2+ {[%emt 0:00:11]} 27. Kf1 {[%emt 0:00:28]} Be5 {[%emt 0:00:20]} 28. Qc4 {[%emt 0:05:28]} Qd7 {[%emt 0:00:25]} 29. f3 {[%emt 0:08:33]} exf3 {[%emt 0:02:38]} 30. Nxf3 {[%emt 0:00:50]} Bd3+ {[%emt 0:00:10]} 0-1

[Event "EYTCC Open U18 2022"]
[Site "Thessaloniki"]
[Date "2022.07.14"]
[Round "3.32"]
[White "Podolskyi, Mykhailo"]
[Black "Skodras, Marios Konstantinos"]
[Result "1-0"]
[ECO "D56"]
[WhiteElo "2025"]
[BlackElo "1446"]
[Annotator "ChessBase"]
[PlyCount "65"]
[EventDate "2022.07.12"]
[EventType "team-tourn"]
[EventCountry "GRE"]
[SourceTitle "playchess.com"]
[Source "ChessBase"]
[SourceQuality "1"]
[WhiteTeam "Ukraine"]
[BlackTeam "Greece"]
[WhiteTeamCountry "UKR"]
[BlackTeamCountry "GRE"]
[TimeControl "40/5400+30:1800+30"]

1. d4 {[%emt 0:00:19]} d5 {[%emt 0:00:08]} 2. c4 {[%emt 0:00:22]} e6 {[%emt 0:00:06]} 3. Nc3 {[%emt 0:00:43]} Nf6 {[%emt 0:00:23]} 4. Nf3 {[%emt 0:02:35]} Be7 {[%emt 0:02:04]} 5. Bg5 {[%emt 0:01:06]} h6 {[%emt 0:00:48]} 6. Bh4 {[%emt 0:00:28]} O-O {[%emt 0:00:39]} 7. e3 {[%emt 0:00:26]} Nbd7 {[%emt 0:00:45]} 8. cxd5 {[%emt 0:02:06]} exd5 {[%emt 0:02:18]} 9. Bd3 {[%emt 0:00:56]} c6 {[%emt 0:00:41]} 10. Qc2 {[%emt 0:01:16]} Ne8 {[%emt 0:04:07]} 11. Bxe7 {[%emt 0:04:26]} Qxe7 {[%emt 0:00:02]} 12. O-O {[%emt 0:00:03]} Nd6 {[%emt 0:03:00]} 13. b4 {[%emt 0:04:25]} a6 {[%emt 0:10:02]} 14. a4 {[%emt 0:04:52]} Nb6 {[%emt 0:05:23]} 15. b5 {[%emt 0:18:12]} Bd7 {[%emt 0:13:15]} 16. bxa6 {[%emt 0:01:54]} bxa6 {[%emt 0:00:09]} 17. a5 {[%emt 0:04:19]} Nbc4 {[%emt 0:00:01]} 18. Nd2 {[%emt 0:00:21]} Rab8 {[%emt 0:18:51]} 19. Bxc4 {[%emt 0:08:26]} dxc4 {[%emt 0:00:05]} 20. Na4 {[%emt 0:00:13]} Bf5 {[%emt 0:01:27]} 21. Qa2 {[%emt 0:00:20]} Bd3 {[%emt 0:17:23]} 22. Rfc1 {[%emt 0:00:29]} Rb4 {[%emt 0:10:05]} 23. Nc5 {[%emt 0:02:18]} Rfb8 {[%emt 0:01:19]} 24. Nxd3 {[%emt 0:00:34]} cxd3 {[%emt 0:00:04]} 25. Qa3 {[%emt 0:00:09]} Qf6 {[%emt 0:04:21]} 26. Qxd3 {[%emt 0:00:29]} Nf5 {[%emt 0:01:38]} 27. Nf3 {[%emt 0:03:11]} Rb2 {[%emt 0:00:31]} 28. Qxa6 {[%emt 0:02:14]} Nxe3 {[%emt 0:03:18]} 29. Qxc6 {[%emt 0:01:48]} Qf4 {[%emt 0:00:57]} 30. fxe3 {[%emt 0:01:05]} Qxe3+ {[%emt 0:00:10]} 31. Kh1 {[%emt 0:00:16]} Rxg2 {[%emt 0:01:23]} 32. Kxg2 {[%emt 0:00:16]} Rb2+ {[%emt 0:00:03]} 33. Rc2 {[%emt 0:00:11]} 1-0

[Event "EYTCC Open U18 2022"]
[Site "Thessaloniki"]
[Date "2022.07.14"]
[Round "3.33"]
[White "Zeneli, Klendi"]
[Black "Pekkul, Arda"]
[Result "1-0"]
[ECO "B22"]
[WhiteElo "1921"]
[BlackElo "1599"]
[Annotator "ChessBase"]
[PlyCount "65"]
[EventDate "2022.07.12"]
[EventType "team-tourn"]
[EventCountry "GRE"]
[SourceTitle "playchess.com"]
[Source "ChessBase"]
[SourceQuality "1"]
[WhiteTeam "Albania"]
[BlackTeam "Turkey"]
[WhiteTeamCountry "ALB"]
[BlackTeamCountry "TUR"]
[TimeControl "40/5400+30:1800+30"]

1. e4 {[%emt 0:00:05]} c5 {[%emt 0:00:11]} 2. c3 {[%emt 0:00:04]} d5 {[%emt 0:00:11]} 3. exd5 {[%emt 0:00:06]} Qxd5 {[%emt 0:00:13]} 4. Nf3 {[%emt 0:00:05]} Nf6 {[%emt 0:00:27]} 5. Na3 {[%emt 0:00:06]} e6 {[%emt 0:00:18]} 6. d4 {[%emt 0:02:03]} a6 {[%emt 0:00:47]} 7. Nc4 {[%emt 0:01:55]} Nbd7 {[%emt 0:00:32]} 8. Be2 {[%emt 0:05:15]} b5 {[%emt 0:01:27]} 9. Ne3 {[%emt 0:01:45]} Qd6 {[%emt 0:05:33]} 10. a4 {[%emt 0:05:23]} Rb8 {[%emt 0:07:25]} 11. O-O {[%emt 0:03:33]} Be7 {[%emt 0:08:31]} 12. axb5 axb5 {[%emt 0:00:40]} 13. Ra5 {[%emt 0:28:59]} c4 {[%emt 0:04:20]} 14. b3 {[%emt 0:05:22]} Qc7 {[%emt 0:07:12]} 15. Ra1 {[%emt 0:01:44]} cxb3 {[%emt 0:00:48]} 16. Qxb3 {[%emt 0:00:22]} O-O {[%emt 0:12:15]} 17. Bxb5 {[%emt 0:13:30]} Bb7 {[%emt 0:03:18]} 18. c4 {[%emt 0:07:55]} Bxf3 {[%emt 0:08:22]} 19. gxf3 {[%emt 0:00:06]} Bd6 {[%emt 0:01:42]} 20. Ng4 {[%emt 0:06:44]} h5 {[%emt 0:05:44]} 21. Nxf6+ {[%emt 0:00:16]} Nxf6 {[%emt 0:00:03]} 22. h3 {[%emt 0:02:52]} e5 {[%emt 0:12:33]} 23. Qd3 {[%emt 0:05:11]} exd4 {[%emt 0:06:22]} 24. Qxd4 {[%emt 0:00:12]} Rfd8 {[%emt 0:01:55]} 25. Qh4 {[%emt 0:00:07]} Be5 {[%emt 0:01:04]} 26. Ra6 {[%emt 0:01:50]} Rd4 {[%emt 0:06:42]} 27. Qg5 {[%emt 0:00:07]} Nh7 {[%emt 0:00:47]} 28. Qf5 {[%emt 0:02:36]} g6 {[%emt 0:00:11]} 29. Qb1 {[%emt 0:02:45]} Qc8 {[%emt 0:02:41]} 30. Rxg6+ {[%emt 0:03:35]} fxg6 {[%emt 0:00:16]} 31. Qxg6+ {[%emt 0:00:08]} Kh8 {[%emt 0:01:44]} 32. Qxh5 {[%emt 0:00:08]} Bg7 {[%emt 0:01:30]} 33. Re1 {[%emt 0:00:31]} 1-0

[Event "EYTCC Open U18 2022"]
[Site "Thessaloniki"]
[Date "2022.07.14"]
[Round "3.34"]
[White "Atis, Hasan"]
[Black "Xhembulla, Aleksander"]
[Result "0-1"]
[ECO "C89"]
[WhiteElo "1956"]
[BlackElo "1909"]
[Annotator "ChessBase"]
[PlyCount "94"]
[EventDate "2022.07.12"]
[EventType "team-tourn"]
[EventCountry "GRE"]
[SourceTitle "playchess.com"]
[Source "ChessBase"]
[SourceQuality "1"]
[WhiteTeam "Turkey"]
[BlackTeam "Albania"]
[WhiteTeamCountry "TUR"]
[BlackTeamCountry "ALB"]
[TimeControl "40/5400+30:1800+30"]

1. e4 {[%emt 0:00:04]} e5 {[%emt 0:00:05]} 2. Nf3 {[%emt 0:00:06]} Nc6 {[%emt 0:00:05]} 3. Bb5 {[%emt 0:00:02]} a6 {[%emt 0:00:06]} 4. Ba4 {[%emt 0:00:04]} Nf6 {[%emt 0:00:05]} 5. O-O {[%emt 0:00:08]} Be7 {[%emt 0:00:04]} 6. Re1 {[%emt 0:00:08]} b5 {[%emt 0:00:35]} 7. Bb3 {[%emt 0:00:04]} O-O {[%emt 0:00:00]} 8. c3 {[%emt 0:00:35]} d5 {[%emt 0:00:00]} 9. exd5 {[%emt 0:33:22]} Nxd5 {[%emt 0:00:28]} 10. Nxe5 {[%emt 0:01:20]} Nxe5 {[%emt 0:00:07]} 11. Rxe5 {[%emt 0:00:02]} c6 {[%emt 0:00:05]} 12. Bxd5 cxd5 13. d4 {[%emt 0:08:39]} Bd6 {[%emt 0:02:43]} 14. Re1 {[%emt 0:01:00]} Qh4 {[%emt 0:00:35]} 15. g3 {[%emt 0:00:32]} Qh3 {[%emt 0:00:13]} 16. Be3 {[%emt 0:12:46]} Ra7 {[%emt 0:04:09]} 17. Qd3 {[%emt 0:12:49]} Re7 {[%emt 0:03:24]} 18. Nd2 {[%emt 0:02:13]} Rfe8 {[%emt 0:03:43]} 19. Qf1 {[%emt 0:00:38]} Qh5 {[%emt 0:16:37]} 20. Qg2 {[%emt 0:00:51]} a5 {[%emt 0:04:13]} 21. h4 {[%emt 0:07:54]} h6 {[%emt 0:05:33]} 22. Nf1 {[%emt 0:04:28]} a4 {[%emt 0:24:02]} 23. Nh2 {[%emt 0:07:25]} Re4 {[%emt 0:05:04]} 24. Rad1 {[%emt 0:02:02]} R8e6 {[%emt 0:06:41]} 25. Qf3 {[%emt 0:02:43]} Rxh4 {[%emt 0:10:20]} 26. Qxh5 {[%emt 0:00:02]} Rxh5 {[%emt 0:00:08]} 27. Bd2 {[%emt 0:00:19]} Rf5 {[%emt 0:01:16]} 28. f4 {[%emt 0:00:59]} Rff6 {[%emt 0:06:11]} 29. Kg2 {[%emt 0:00:10]} Rxe1 {[%emt 0:02:11]} 30. Rxe1 {[%emt 0:00:02]} Re6 {[%emt 0:02:32]} 31. Rxe6 {[%emt 0:02:16]} Bxe6 {[%emt 0:00:00]} 32. g4 {[%emt 0:00:32]} f5 {[%emt 0:03:41]} 33. g5 {[%emt 0:02:12]} hxg5 {[%emt 0:00:27]} 34. fxg5 {[%emt 0:00:02]} Kf7 {[%emt 0:00:17]} 35. Nf1 {[%emt 0:00:51]} Kg6 {[%emt 0:00:29]} 36. Kf3 {[%emt 0:00:37]} Be7 {[%emt 0:00:41]} 37. Bf4 {[%emt 0:00:29]} Bxg5 {[%emt 0:00:13]} 38. Bd6 {[%emt 0:00:30]} Bc1 {[%emt 0:00:32]} 39. b3 {[%emt 0:00:05]} Kf7 {[%emt 0:01:04]} 40. Ne3 {[%emt 0:00:00]} g5 {[%emt 0:00:00]} 41. Nc2 {[%emt 0:05:08]} f4 {[%emt 0:02:41]} 42. Nb4 {[%emt 0:07:20]} g4+ {[%emt 0:01:05]} 43. Kf2 {[%emt 0:00:37]} g3+ {[%emt 0:04:04]} 44. Kf3 {[%emt 0:06:15]} Bg4+ {[%emt 0:00:08]} 45. Kg2 {[%emt 0:00:07]} Bf5 {[%emt 0:00:07]} 46. Bxf4 {[%emt 0:06:07]} Bxf4 {[%emt 0:00:06]} 47. Kf3 {[%emt 0:00:04]} Be4+ {[%emt 0:00:23]} 0-1

[Event "EYTCC Open U18 2022"]
[Site "Thessaloniki"]
[Date "2022.07.14"]
[Round "3.35"]
[White "Ramaj, Ergit"]
[Black "Turk, Talha Gunes"]
[Result "1-0"]
[ECO "B40"]
[WhiteElo "1980"]
[BlackElo "1597"]
[Annotator "ChessBase"]
[PlyCount "67"]
[EventDate "2022.07.12"]
[EventType "team-tourn"]
[EventCountry "GRE"]
[SourceTitle "playchess.com"]
[Source "ChessBase"]
[SourceQuality "1"]
[WhiteTeam "Albania"]
[BlackTeam "Turkey"]
[WhiteTeamCountry "ALB"]
[BlackTeamCountry "TUR"]
[TimeControl "40/5400+30:1800+30"]

1. e4 {[%emt 0:00:03]} c5 {[%emt 0:00:08]} 2. Nf3 {[%emt 0:00:08]} e6 {[%emt 0:00:07]} 3. d4 {[%emt 0:00:05]} cxd4 {[%emt 0:00:04]} 4. Nxd4 {[%emt 0:00:03]} Nf6 {[%emt 0:00:07]} 5. Nc3 {[%emt 0:00:08]} Nc6 {[%emt 0:00:04]} 6. Nxc6 {[%emt 0:00:58]} bxc6 {[%emt 0:00:08]} 7. e5 {[%emt 0:01:02]} Nd5 {[%emt 0:00:06]} 8. Ne4 {[%emt 0:00:37]} Qc7 {[%emt 0:02:14]} 9. f4 {[%emt 0:01:05]} Qb6 {[%emt 0:02:21]} 10. c4 {[%emt 0:30:49]} Bb4+ {[%emt 0:09:30]} 11. Ke2 {[%emt 0:01:00]} Ba6 {[%emt 0:26:51]} 12. Kf3 {[%emt 0:01:15]} f5 {[%emt 0:00:42]} 13. exf6 {[%emt 0:08:05]} Nxf6 {[%emt 0:00:48]} 14. c5 {[%emt 0:07:00]} Qa5 {[%emt 0:07:02]} 15. Nxf6+ {[%emt 0:07:57]} gxf6 {[%emt 0:00:07]} 16. Bxa6 {[%emt 0:00:23]} Qxa6 {[%emt 0:00:06]} 17. Qd4 {[%emt 0:00:15]} Qb5 {[%emt 0:12:58]} 18. Be3 {[%emt 0:02:49]} O-O-O {[%emt 0:10:12]} 19. a4 {[%emt 0:06:07]} Qb8 {[%emt 0:04:46]} 20. a5 {[%emt 0:05:48]} Qb5 {[%emt 0:08:46]} 21. Rhc1 {[%emt 0:05:10]} e5 {[%emt 0:05:27]} 22. Qc4 {[%emt 0:04:14]} Kc7 {[%emt 0:04:33]} 23. Qe4 {[%emt 0:05:09]} Rde8 {[%emt 0:03:39]} 24. Rc4 {[%emt 0:02:04]} f5 {[%emt 0:00:06]} 25. Qc2 {[%emt 0:01:08]} e4+ {[%emt 0:01:08]} 26. Kf2 {[%emt 0:00:15]} d5 {[%emt 0:00:11]} 27. cxd6+ {[%emt 0:01:22]} Bxd6 {[%emt 0:00:02]} 28. Rc1 {[%emt 0:01:10]} c5 {[%emt 0:01:43]} 29. Bxc5 {[%emt 0:01:37]} Kd7 {[%emt 0:00:01]} 30. Rd4 {[%emt 0:02:35]} e3+ {[%emt 0:00:15]} 31. Kg1 {[%emt 0:01:02]} Re6 {[%emt 0:01:07]} 32. Bxd6 {[%emt 0:00:21]} Rxd6 {[%emt 0:00:37]} 33. Qc7+ {[%emt 0:00:19]} Ke8 {[%emt 0:00:05]} 34. Rxd6 {[%emt 0:00:14]} 1-0

[Event "EYTCC Open U18 2022"]
[Site "Thessaloniki"]
[Date "2022.07.14"]
[Round "3.36"]
[White "Kayrak, Murat"]
[Black "Boci, Petro"]
[Result "1-0"]
[ECO "E20"]
[WhiteElo "1561"]
[BlackElo "1709"]
[Annotator "NA"]
[PlyCount "63"]
[EventDate "2022.07.12"]
[EventType "team-tourn"]
[EventCountry "GRE"]
[SourceTitle "playchess.com"]
[Source "ChessBase"]
[SourceQuality "1"]
[WhiteTeam "Turkey"]
[BlackTeam "Albania"]
[WhiteTeamCountry "TUR"]
[BlackTeamCountry "ALB"]
[TimeControl "40/5400+30:1800+30"]

1. d4 {[%emt 0:00:09]} Nf6 {[%emt 0:00:14]} 2. c4 {[%emt 0:00:09]} e6 {[%emt 0:00:12]} 3. Nc3 {[%emt 0:00:06]} Bb4 {[%emt 0:00:16]} 4. f3 {[%emt 0:00:18]} d5 {[%emt 0:00:34]} 5. a3 {[%emt 0:00:05]} Bxc3+ {[%emt 0:00:30]} 6. bxc3 {[%emt 0:00:07]} O-O {[%emt 0:01:47]} 7. e3 {[%emt 0:00:25]} b6 {[%emt 0:00:44]} 8. Bd3 {[%emt 0:01:05]} Bb7 {[%emt 0:00:19]} 9. Ne2 {[%emt 0:00:14]} Nbd7 {[%emt 0:00:50]} 10. O-O {[%emt 0:01:11]} c5 {[%emt 0:00:40]} 11. Bb2 {[%emt 0:01:12]} Rc8 {[%emt 0:03:14]} 12. cxd5 {[%emt 0:00:38]} exd5 {[%emt 0:01:02]} 13. Re1 {[%emt 0:01:48]} Re8 {[%emt 0:04:32]} 14. Ng3 {[%emt 0:02:20]} Nf8 {[%emt 0:07:30]} 15. e4 {[%emt 0:02:41]} Ng6 {[%emt 0:03:20]} 16. e5 {[%emt 0:00:38]} Nd7 {[%emt 0:01:14]} 17. Nf5 {[%emt 0:01:20]} Re6 {[%emt 0:10:16]} 18. Nd6 {[%emt 0:02:21]} Rb8 {[%emt 0:03:00]} 19. Bf5 {[%emt 0:02:10]} Rxd6 {[%emt 0:07:14]} 20. exd6 {[%emt 0:00:08]} Nf6 {[%emt 0:00:28]} 21. Qa4 {[%emt 0:01:40]} a6 {[%emt 0:06:12]} 22. dxc5 {[%emt 0:04:30]} bxc5 {[%emt 0:02:29]} 23. d7 {[%emt 0:00:21]} Ne7 {[%emt 0:01:18]} 24. Rxe7 {[%emt 0:20:47]} Qxe7 {[%emt 0:00:53]} 25. Qf4 {[%emt 0:00:08]} Rd8 {[%emt 0:07:19]} 26. Qc7 {[%emt 0:01:08]} Ba8 {[%emt 0:01:41]} 27. Kf1 {[%emt 0:01:11]} g6 {[%emt 0:09:47]} 28. Re1 {[%emt 0:02:18]} Qf8 {[%emt 0:00:19]} 29. Bh3 {[%emt 0:00:30]} Kg7 {[%emt 0:02:13]} 30. a4 {[%emt 0:02:24]} Rb8 {[%emt 0:03:50]} 31. Bc1 {[%emt 0:06:24]} Rd8 {[%emt 0:07:53]} 32. Bg5 {[%emt 0:00:51]} 1-0

[Event "EYTCC Open U18 2022"]
[Site "Thessaloniki"]
[Date "2022.07.14"]
[Round "3.37"]
[White "Betsakou, Sofia"]
[Black "Stoimenidis, Dimitrios"]
[Result "0-1"]
[ECO "A46"]
[WhiteElo "1412"]
[BlackElo "1993"]
[Annotator "ChessBase"]
[PlyCount "56"]
[EventDate "2022.07.12"]
[EventType "team-tourn"]
[EventCountry "GRE"]
[SourceTitle "playchess.com"]
[Source "ChessBase"]
[SourceQuality "1"]
[WhiteTeam "Greece"]
[BlackTeam "Greece"]
[WhiteTeamCountry "GRE"]
[BlackTeamCountry "GRE"]
[TimeControl "40/5400+30:1800+30"]

1. d4 {[%emt 0:00:03]} Nf6 {[%emt 0:00:05]} 2. Nf3 {[%emt 0:00:07]} e6 {[%emt 0:00:04]} 3. Nbd2 {[%emt 0:00:23]} c5 {[%emt 0:03:00]} 4. e3 {[%emt 0:00:54]} cxd4 {[%emt 0:00:29]} 5. exd4 {[%emt 0:00:14]} Be7 {[%emt 0:00:06]} 6. Bd3 {[%emt 0:01:28]} O-O {[%emt 0:00:17]} 7. O-O {[%emt 0:00:47]} b6 {[%emt 0:00:07]} 8. c3 {[%emt 0:00:24]} Bb7 {[%emt 0:00:15]} 9. Re1 {[%emt 0:04:25]} d6 {[%emt 0:02:57]} 10. Qe2 {[%emt 0:01:01]} Nbd7 {[%emt 0:00:37]} 11. Ne4 {[%emt 0:07:35]} Nxe4 {[%emt 0:00:08]} 12. Bxe4 {[%emt 0:00:06]} Bxe4 {[%emt 0:00:04]} 13. Qxe4 {[%emt 0:00:06]} Nf6 {[%emt 0:01:08]} 14. Qe2 {[%emt 0:00:46]} Qc8 {[%emt 0:02:14]} 15. c4 {[%emt 0:05:39]} d5 {[%emt 0:00:33]} 16. b3 {[%emt 0:01:45]} Qb7 {[%emt 0:01:19]} 17. Ne5 {[%emt 0:05:37]} Rad8 {[%emt 0:02:42]} 18. Bb2 {[%emt 0:01:52]} Nd7 {[%emt 0:02:38]} 19. f4 {[%emt 0:05:11]} Nxe5 20. fxe5 {[%emt 0:00:45]} Rd7 {[%emt 0:07:27]} 21. a4 {[%emt 0:05:12]} Rc8 {[%emt 0:04:03]} 22. Rac1 {[%emt 0:09:03]} Rdc7 {[%emt 0:07:22]} 23. cxd5 {[%emt 0:03:41]} Qxd5 {[%emt 0:00:12]} 24. Qd3 {[%emt 0:01:30]} Bg5 {[%emt 0:03:25]} 25. Rxc7 {[%emt 0:03:46]} Rxc7 {[%emt 0:00:05]} 26. Ba3 {[%emt 0:05:05]} Qc6 {[%emt 0:10:00]} 27. Re2 {[%emt 0:09:02]} Qc3 {[%emt 0:01:12]} 28. Qe4 {[%emt 0:00:48]} Qa1+ 0-1

[Event "EYTCC Open U18 2022"]
[Site "Thessaloniki"]
[Date "2022.07.14"]
[Round "3.38"]
[White "Karamichos, Michail"]
[Black "Betsakos, Haralampos"]
[Result "1-0"]
[ECO "B13"]
[WhiteElo "1839"]
[BlackElo "1183"]
[Annotator "NA"]
[PlyCount "77"]
[EventDate "2022.07.12"]
[EventType "team-tourn"]
[EventCountry "GRE"]
[SourceTitle "playchess.com"]
[Source "ChessBase"]
[SourceQuality "1"]
[WhiteTeam "Greece"]
[BlackTeam "Greece"]
[WhiteTeamCountry "GRE"]
[BlackTeamCountry "GRE"]
[TimeControl "40/5400+30:1800+30"]

1. e4 {[%emt 0:00:33]} c6 {[%emt 0:00:10]} 2. d4 {[%emt 0:00:00]} d5 {[%emt 0:00:06]} 3. exd5 {[%emt 0:00:00]} cxd5 {[%emt 0:00:09]} 4. Bd3 {[%emt 0:00:11]} Nc6 {[%emt 0:00:37]} 5. c3 {[%emt 0:00:18]} Nf6 {[%emt 0:01:24]} 6. h3 {[%emt 0:00:10]} g6 {[%emt 0:02:35]} 7. Nf3 {[%emt 0:00:56]} Bf5 {[%emt 0:02:01]} 8. Ne5 {[%emt 0:00:30]} Bxd3 {[%emt 0:04:44]} 9. Nxd3 {[%emt 0:00:10]} Bg7 {[%emt 0:01:13]} 10. O-O {[%emt 0:00:30]} O-O {[%emt 0:00:18]} 11. Bf4 {[%emt 0:00:05]} b6 {[%emt 0:11:04]} 12. Nd2 {[%emt 0:02:05]} Re8 {[%emt 0:06:38]} 13. Re1 {[%emt 0:00:25]} Nd7 {[%emt 0:05:31]} 14. Nf3 {[%emt 0:02:25]} e6 {[%emt 0:03:21]} 15. Qd2 {[%emt 0:00:33]} Rc8 {[%emt 0:04:53]} 16. Bh6 {[%emt 0:00:48]} Qc7 {[%emt 0:10:20]} 17. Bxg7 Kxg7 {[%emt 0:00:10]} 18. g3 {[%emt 0:04:03]} Na5 {[%emt 0:06:12]} 19. Kg2 {[%emt 0:00:53]} Nc4 {[%emt 0:01:26]} 20. Qe2 {[%emt 0:00:37]} Qc6 {[%emt 0:06:13]} 21. Rac1 {[%emt 0:02:06]} Nd6 {[%emt 0:05:39]} 22. Nfe5 {[%emt 0:00:42]} Nxe5 {[%emt 0:01:43]} 23. Nxe5 {[%emt 0:01:21]} Qb5 {[%emt 0:02:12]} 24. Nd3 {[%emt 0:00:25]} Kg8 {[%emt 0:05:37]} 25. h4 {[%emt 0:00:09]} h5 {[%emt 0:02:51]} 26. Rcd1 {[%emt 0:12:42]} Qd7 {[%emt 0:04:17]} 27. g4 {[%emt 0:01:28]} hxg4 {[%emt 0:03:56]} 28. Qxg4 {[%emt 0:00:05]} Qe7 {[%emt 0:01:24]} 29. Re3 {[%emt 0:04:21]} Nf5 {[%emt 0:02:17]} 30. Rh3 {[%emt 0:00:31]} Kg7 {[%emt 0:01:03]} 31. h5 {[%emt 0:01:47]} Qf6 {[%emt 0:01:52]} 32. Ne5 {[%emt 0:02:21]} Rh8 {[%emt 0:01:11]} 33. Rdh1 {[%emt 0:02:55]} Nh6 {[%emt 0:01:03]} 34. Qe2 {[%emt 0:01:45]} Nf5 {[%emt 0:01:09]} 35. f4 {[%emt 0:06:59]} Nh6 {[%emt 0:02:05]} 36. hxg6 {[%emt 0:01:46]} fxg6 {[%emt 0:00:24]} 37. Rg3 {[%emt 0:01:16]} Qxf4 {[%emt 0:00:34]} 38. Rxg6+ {[%emt 0:00:21]} Kh7 {[%emt 0:00:31]} 39. Rhxh6+ {[%emt 0:00:30]} 1-0

[Event "EYTCC Open U18 2022"]
[Site "Thessaloniki"]
[Date "2022.07.14"]
[Round "3.39"]
[White "Karkanas, Stylianos"]
[Black "Tagkaloglou, Savvas Stefanos"]
[Result "0-1"]
[ECO "E90"]
[WhiteElo "1089"]
[BlackElo "1724"]
[Annotator "NA"]
[PlyCount "24"]
[EventDate "2022.07.12"]
[EventType "team-tourn"]
[EventCountry "GRE"]
[SourceTitle "playchess.com"]
[Source "ChessBase"]
[SourceQuality "1"]
[WhiteTeam "Greece"]
[BlackTeam "Greece"]
[WhiteTeamCountry "GRE"]
[BlackTeamCountry "GRE"]
[TimeControl "40/5400+30:1800+30"]

1. d4 {[%emt 0:00:30]} Nf6 {[%emt 0:00:30]} 2. Nf3 {[%emt 0:00:30]} g6 {[%emt 0:00:30]} 3. c4 {[%emt 0:00:30]} Bg7 {[%emt 0:00:30]} 4. Nc3 {[%emt 0:00:30]} O-O {[%emt 0:00:30]} 5. e4 {[%emt 0:00:30]} d6 6. Be3 e5 {[%emt 0:05:48]} 7. d5 {[%emt 0:03:21]} Nh5 {[%emt 0:10:02]} 8. Nd2 {[%emt 0:06:12]} Qe8 {[%emt 0:07:21]} 9. Be2 {[%emt 0:08:24]} Nf4 {[%emt 0:00:18]} 10. Bxf4 {[%emt 0:03:13]} exf4 {[%emt 0:00:11]} 11. Qc2 {[%emt 0:00:26]} f5 {[%emt 0:02:02]} 12. f3 {[%emt 0:02:42]} Na6 {[%emt 0:03:43]} 0-1

[Event "EYTCC Open U18 2022"]
[Site "Thessaloniki"]
[Date "2022.07.14"]
[Round "3.40"]
[White "Karakotsios, Konstantinos"]
[Black "Maki, Eftychia Maria"]
[Result "1-0"]
[ECO "D55"]
[WhiteElo "1376"]
[BlackElo "1157"]
[Annotator "NA"]
[PlyCount "73"]
[EventDate "2022.07.12"]
[EventType "team-tourn"]
[EventCountry "GRE"]
[SourceTitle "playchess.com"]
[Source "ChessBase"]
[SourceQuality "1"]
[WhiteTeam "Greece"]
[BlackTeam "Greece"]
[WhiteTeamCountry "GRE"]
[BlackTeamCountry "GRE"]
[TimeControl "40/5400+30:1800+30"]

1. d4 {[%emt 0:00:03]} Nf6 {[%emt 0:00:09]} 2. c4 {[%emt 0:00:05]} e6 {[%emt 0:00:06]} 3. Nc3 {[%emt 0:00:26]} d5 {[%emt 0:00:10]} 4. Bg5 {[%emt 0:00:09]} Be7 {[%emt 0:00:08]} 5. Nf3 {[%emt 0:00:12]} O-O {[%emt 0:00:11]} 6. e3 {[%emt 0:00:07]} c6 {[%emt 0:00:20]} 7. Qc2 {[%emt 0:01:12]} Nbd7 {[%emt 0:00:17]} 8. cxd5 {[%emt 0:03:02]} cxd5 {[%emt 0:11:05]} 9. Bd3 {[%emt 0:01:20]} h6 {[%emt 0:07:36]} 10. Bh4 {[%emt 0:01:22]} a6 {[%emt 0:01:00]} 11. Rc1 {[%emt 0:02:26]} b5 {[%emt 0:04:55]} 12. Ne2 {[%emt 0:15:56]} Qa5+ {[%emt 0:09:31]} 13. Nd2 {[%emt 0:07:53]} Bd6 {[%emt 0:08:25]} 14. O-O {[%emt 0:04:34]} Bb7 {[%emt 0:04:07]} 15. Nb3 {[%emt 0:03:23]} Qb6 {[%emt 0:00:34]} 16. Bg3 {[%emt 0:13:31]} Rac8 {[%emt 0:05:39]} 17. Qd2 {[%emt 0:02:36]} Ne4 {[%emt 0:06:17]} 18. Bxe4 {[%emt 0:05:43]} Bxg3 {[%emt 0:02:55]} 19. fxg3 {[%emt 0:12:19]} dxe4 {[%emt 0:00:22]} 20. Nc3 {[%emt 0:05:48]} b4 {[%emt 0:05:24]} 21. Na4 {[%emt 0:00:55]} Qd6 {[%emt 0:04:07]} 22. Nac5 {[%emt 0:00:31]} Nxc5 {[%emt 0:04:40]} 23. Nxc5 {[%emt 0:00:41]} Bd5 {[%emt 0:01:52]} 24. b3 {[%emt 0:04:50]} a5 {[%emt 0:01:15]} 25. Qe2 {[%emt 0:01:48]} Qd8 {[%emt 0:04:17]} 26. Rc2 {[%emt 0:04:09]} Re8 {[%emt 0:02:48]} 27. Rfc1 {[%emt 0:01:24]} Qb6 {[%emt 0:02:12]} 28. Na4 {[%emt 0:01:48]} Qb7 {[%emt 0:00:59]} 29. Nc5 {[%emt 0:02:07]} Qb6 {[%emt 0:00:22]} 30. Qg4 {[%emt 0:00:41]} Qd6 {[%emt 0:01:56]} 31. Nxe4 {[%emt 0:01:36]} Bxe4 {[%emt 0:01:11]} 32. Rxc8 {[%emt 0:00:55]} Rxc8 {[%emt 0:00:44]} 33. Rxc8+ {[%emt 0:00:02]} Kh7 {[%emt 0:00:16]} 34. Qxe4+ {[%emt 0:00:07]} f5 {[%emt 0:00:33]} 35. Qe5 {[%emt 0:00:17]} Qd7 {[%emt 0:00:53]} 36. Rc7 {[%emt 0:00:14]} Qe8 {[%emt 0:00:25]} 37. Qxg7# {[%emt 0:00:07]} 1-0